bitfinex/quotes_BTCUSD_20250212
["timestamp","ask_amount","ask_price","bid_price","bid_amount"]
[1739388851544,0.00100087,96924.0,96923.0,1.06612665]
[1739388852351,0.00100087,96924.0,96923.0,1.07312665]
[1739388852552,8.7e-07,96924.0,96923.0,1.07312665]
[1739388852755,8.7e-07,96924.0,96923.0,0.78607865]
[1739388852932,8.7e-07,96924.0,96923.0,1.33257865]
[1739388854346,0.00022387,96934.0,96923.0,1.33257865]
[1739388854347,8.7e-07,96934.0,96933.0,0.455346]
[1739388854512,8.7e-07,96934.0,96933.0,0.55784965]
[1739388855733,0.00100087,96934.0,96933.0,0.57984965]
[1739388855927,0.00100087,96934.0,96933.0,0.96994365]
[1739388856134,8.7e-07,96934.0,96933.0,0.92126465]
[1739388856356,8.7e-07,96934.0,96933.0,0.56484965]
[1739388856553,8.7e-07,96934.0,96933.0,0.57984965]
[1739388856793,3.2e-07,96934.0,96933.0,0.57984965]
[1739388856976,3.2e-07,96934.0,96933.0,1.31456265]
[1739388857135,3.2e-07,96934.0,96933.0,1.32256265]
[1739388857334,0.00964081,96976.0,96943.0,0.283104]
[1739388857576,0.00066407,96951.0,96950.0,0.381518]
[1739388857845,0.00066407,96951.0,96950.0,0.50702165]
[1739388858266,0.00066407,96951.0,96950.0,0.48402165]
[1739388859369,0.00066407,96951.0,96950.0,0.51820692]
[1739388859542,0.00066407,96951.0,96950.0,0.90861692]
[1739388859722,0.001,96977.0,96976.0,0.304677]
[1739388859922,0.00104542,96977.0,96976.0,0.304677]
[1739388860936,0.00104542,96977.0,96976.0,0.40718065]
[1739388862529,0.00104542,96977.0,96976.0,0.41218065]
[1739388862968,0.00104542,96977.0,96976.0,0.41818065]
[1739388863912,0.00104542,96977.0,96976.0,0.4294959]
[1739388870228,0.16645381,97000.0,96978.0,0.15]
[1739388870438,4.54e-05,96996.0,96989.0,0.154655]
[1739388870657,4.54e-05,96996.0,96995.0,0.23731853]
[1739388870861,4.54e-05,96996.0,96995.0,0.154647]
[1739388872692,4.54e-05,96996.0,96995.0,0.25715065]
[1739388872891,0.0001519,96996.0,96995.0,0.40715065]
[1739388873094,0.0001519,96996.0,96995.0,0.41915065]
[1739388873295,0.0001519,96996.0,96995.0,0.42615065]
[1739388873501,0.0001519,96996.0,96995.0,0.41415065]
[1739388873781,0.0001519,96996.0,96995.0,0.42215065]
[1739388873983,0.0001519,96996.0,96995.0,0.42915065]
[1739388881174,0.0001519,96996.0,96995.0,0.326647]
[1739388882261,0.0001519,96996.0,96995.0,0.176647]
[1739388882943,0.0001519,96996.0,96995.0,0.022]
[1739388883150,0.0001519,96996.0,96995.0,0.007]
[1739388883377,0.0001519,96996.0,96990.0,0.11574829]
[1739388883591,0.0001519,96996.0,96995.0,0.168647]
[1739388884211,0.0001519,96996.0,96995.0,0.159647]
[1739388884406,0.0001519,96996.0,96995.0,0.154647]
[1739388885606,0.00978063,96996.0,96995.0,0.155647]
[1739388886024,0.00978063,96996.0,96995.0,0.154647]
[1739388886276,0.00978063,96996.0,96995.0,0.158647]
[1739388886481,0.00978063,96996.0,96994.0,0.154648]
[1739388886845,0.00978063,96996.0,96995.0,0.158647]
[1739388887067,0.00978063,96996.0,96995.0,0.160647]
[1739388887268,0.00978063,96996.0,96995.0,0.163647]
[1739388887465,0.00978063,96996.0,96995.0,0.157647]
[1739388887667,0.00978063,96996.0,96995.0,0.154647]
[1739388888864,0.00978063,96996.0,96995.0,0.155647]
[1739388889169,0.01749311,96996.0,96995.0,0.154647]
[1739388889398,0.01749311,96996.0,96995.0,0.156647]
[1739388892150,0.01749311,96996.0,96995.0,0.157647]
[1739388893759,0.03678805,96996.0,96995.0,0.157647]
[1739388894585,0.03678805,96996.0,96995.0,0.003]
[1739388895413,0.01749311,96996.0,96995.0,0.003]
[1739388895772,0.01749311,96996.0,96995.0,0.002]
[1739388895990,0.01749311,96996.0,96991.0,0.154652]
[1739388896572,0.01749311,96996.0,96990.0,0.27040229]
[1739388896790,0.01749311,96996.0,96995.0,0.154647]
[1739388896991,0.00786438,96996.0,96995.0,0.15487065]
[1739388897716,0.0001519,96996.0,96995.0,0.15487065]
[1739388898116,0.01944659,96996.0,96995.0,0.15487065]
[1739388898729,0.02909388,96996.0,96995.0,0.15487065]
[1739388899134,0.03681198,96996.0,96995.0,0.15487065]
[1739388899430,0.03681198,96996.0,96995.0,0.15887065]
[1739388899636,0.03681198,96996.0,96995.0,0.16187065]
[1739388899859,0.03681198,96996.0,96995.0,0.15787065]
[1739388900158,0.03681198,96996.0,96995.0,0.16087065]
[1739388900500,0.03681198,96996.0,96995.0,0.15787065]
[1739388900695,0.03681198,96996.0,96995.0,0.16187065]
[1739388901254,0.06768981,96996.0,96995.0,0.16187065]
[1739388901407,0.06768981,96996.0,96995.0,0.23907065]
[1739388901840,0.06768981,96996.0,96995.0,0.24607065]
[1739388902295,0.06728981,96996.0,96995.0,0.24607065]
[1739388903196,0.03641198,96996.0,96995.0,0.24607065]
[1739388904556,0.01736539,96996.0,96995.0,0.24607065]
[1739388905174,0.01736539,96996.0,96995.0,0.23907065]
[1739388905331,0.01736539,96996.0,96995.0,0.23807065]
[1739388905773,0.01736539,96996.0,96995.0,0.24107065]
[1739388906095,0.01736539,96996.0,96995.0,0.23507065]
[1739388906311,0.01736539,96996.0,96995.0,0.24607065]
[1739388908534,0.01736539,96996.0,96995.0,0.3485743]
[1739388909242,0.01747189,96996.0,96995.0,0.3485743]
[1739388909383,0.01747189,96996.0,96995.0,0.4985743]
[1739388909789,0.00975379,96996.0,96995.0,0.4985743]
[1739388913367,0.00975379,96996.0,96995.0,0.5215743]
[1739388913814,0.0001065,96996.0,96995.0,0.5684743]
[1739388914278,5e-07,96996.0,96995.0,0.5684743]
[1739388914483,5e-07,96996.0,96995.0,0.5614743]
[1739388914953,5e-07,96996.0,96995.0,0.5734743]
[1739388915178,5e-07,96996.0,96995.0,0.5694743]
[1739388915422,5e-07,96996.0,96995.0,0.5644743]
[1739388915662,5e-07,96996.0,96995.0,0.5724743]
[1739388916029,5e-07,96996.0,96995.0,0.5644743]
[1739388916499,5e-07,96996.0,96995.0,0.58521765]
[1739388916694,5e-07,96996.0,96995.0,0.78843065]
[1739388917314,5e-07,96996.0,96995.0,0.80343065]
[1739388918115,5e-07,96996.0,96995.0,0.7826873]
[1739388919152,5e-07,96996.0,96995.0,0.7596873]
[1739388920312,5e-07,96996.0,96995.0,0.7826873]
[1739388920897,5e-07,96996.0,96995.0,0.4762743]
[1739388921751,5e-07,96996.0,96995.0,0.5521743]
[1739388922698,5e-07,96996.0,96995.0,0.5751743]
[1739388923914,5e-07,96996.0,96995.0,0.5601743]
[1739388924213,5e-07,96996.0,96995.0,0.5751743]
[1739388924638,60.0,97461.0,96995.0,0.5681743]
[1739388924910,0.0501302,97032.0,97001.0,0.173]
[1739388925159,0.154592,97030.0,97019.0,0.154608]
[1739388925291,0.01928428,97028.0,97016.0,0.206149]
[1739388925501,0.154599,97026.0,97016.0,0.206149]
[1739388925729,0.154602,97023.0,97004.0,0.206177]
[1739388925954,0.154602,97023.0,97004.0,0.30868065]
[1739388926503,0.01928428,97028.0,97027.0,0.154596]
[1739388926700,0.0511302,97032.0,97028.0,0.154594]
[1739388926901,0.001,97032.0,97028.0,0.154594]
[1739388927362,0.001,97032.0,97031.0,0.154589]
[1739388927777,0.001,97032.0,97031.0,0.15502938]
[1739388927978,0.0795636,97039.0,97034.0,0.154584]
[1739388928388,0.0487,97039.0,97034.0,0.154584]
[1739388928800,0.04932587,97035.0,97034.0,0.154584]
[1739388929211,0.05704436,97035.0,97034.0,0.154584]
[1739388930054,0.0763405,97035.0,97034.0,0.155584]
[1739388931173,0.03666269,97035.0,97034.0,0.155584]
[1739388931640,0.03666269,97035.0,97034.0,0.157584]
[1739388931985,0.03666269,97035.0,97034.0,0.003]
[1739388932186,0.19124569,97035.0,97034.0,0.003]
[1739388932434,0.19135219,97035.0,97034.0,0.003]
[1739388932675,0.19135219,97035.0,97034.0,0.002]
[1739388933063,0.19135219,97035.0,97034.0,0.001]
[1739388933276,0.19135219,97035.0,97034.0,0.003]
[1739388933572,0.19135219,97035.0,97034.0,0.002]
[1739388934530,0.154586,97034.0,97031.0,0.00044038]
[1739388935566,0.00771849,97033.0,97031.0,0.00044038]
[1739388935769,0.21247343,97033.0,97031.0,0.00044038]
[1739388935968,0.154588,97032.0,97031.0,0.00044038]
[1739388936169,0.0829696,97033.0,97031.0,0.00044038]
[1739388937165,0.0829696,97032.0,97031.0,0.00044038]
[1739388937364,0.2375576,97032.0,97031.0,0.00044038]
[1739388938271,0.0839696,97032.0,97031.0,0.00044038]
[1739388938903,0.09631919,97032.0,97031.0,0.00044038]
[1739388939766,0.25090719,97032.0,97031.0,0.00044038]
[1739388940422,0.0839696,97032.0,97031.0,0.00044038]
[1739388940773,0.0530968,97032.0,97031.0,0.00044038]
[1739388941616,0.2076848,97032.0,97031.0,0.00044038]
[1739388943376,0.0530968,97032.0,97031.0,0.00044038]
[1739388943781,0.0530968,97032.0,97031.0,0.00066382]
[1739388944343,0.0839881,97032.0,97031.0,0.00066382]
[1739388944481,0.0829881,97032.0,97031.0,0.00066382]
[1739388945718,0.05790593,97032.0,97031.0,0.00066382]
[1739388945892,0.06756227,97032.0,97031.0,0.00066382]
[1739388946095,0.03667097,97032.0,97031.0,0.00066382]
[1739388948832,0.19125897,97032.0,97031.0,0.00066382]
[1739388951879,0.03667097,97032.0,97031.0,0.00066382]
[1739388952964,0.19125897,97032.0,97031.0,0.00066382]
[1739388954332,0.03767097,97032.0,97031.0,0.00066382]
[1739388954538,0.03667097,97032.0,97031.0,0.00066382]
[1739388954755,0.01737483,97032.0,97031.0,0.00066382]
[1739388954931,0.01837483,97032.0,97031.0,0.00066382]
[1739388955227,0.01737483,97032.0,97031.0,0.00066382]
[1739388955427,0.01737483,97032.0,97031.0,0.15525282]
[1739388955566,0.01837483,97032.0,97031.0,0.15525282]
[1739388955922,0.01737483,97032.0,97031.0,0.15525282]
[1739388956139,0.01748133,97032.0,97031.0,0.15525282]
[1739388957621,0.00782499,97032.0,97031.0,0.23795282]
[1739388958035,0.00782499,97032.0,97031.0,0.23895282]
[1739388958428,0.00782499,97032.0,97031.0,0.23995282]
[1739388958638,0.00782499,97032.0,97031.0,0.23795282]
[1739388959198,0.00782499,97032.0,97031.0,0.23995282]
[1739388959617,0.00782499,97032.0,97031.0,0.24195282]
[1739388960319,0.00782499,97032.0,97031.0,0.15925282]
[1739388961400,0.00782499,97032.0,97031.0,0.15725282]
[1739388962012,0.00782499,97032.0,97031.0,0.15925282]
[1739388963888,0.00782499,97032.0,97031.0,0.15725282]
[1739388964299,0.00782499,97032.0,97031.0,0.15825282]
[1739388964492,0.00782499,97032.0,97031.0,0.15525282]
[1739388964918,0.00782499,97032.0,97031.0,0.15825282]
[1739388965123,0.00782499,97032.0,97031.0,0.15525282]
[1739388965528,0.00782499,97032.0,97031.0,0.16325282]
[1739388965855,0.00782499,97032.0,97031.0,0.20905282]
[1739388966029,0.00782499,97032.0,97031.0,0.20405282]
[1739388966431,0.00782499,97032.0,97031.0,0.20905282]
[1739388967217,0.00782499,97032.0,97031.0,0.20605282]
[1739388967617,0.00782499,97032.0,97031.0,0.20405282]
[1739388967838,0.00782499,97032.0,97031.0,0.20605282]
[1739388968172,0.00782499,97032.0,97031.0,0.16325282]
[1739388968536,0.00782499,97032.0,97031.0,0.15525282]
[1739388968736,0.00782499,97032.0,97031.0,0.16925282]
[1739388969255,0.00782499,97032.0,97031.0,0.15525282]
[1739388969420,0.16241299,97032.0,97031.0,0.00066382]
[1739388969837,0.00782499,97032.0,97031.0,0.00066382]
[1739388970504,0.00782499,97032.0,97031.0,0.00366382]
[1739388970676,0.00782499,97032.0,97031.0,0.15825282]
[1739388971120,0.00782499,97032.0,97031.0,0.15625282]
[1739388971336,0.01748298,97032.0,97031.0,0.15625282]
[1739388971905,0.01748298,97032.0,97031.0,0.15525282]
[1739388972112,0.01748298,97032.0,97031.0,0.15625282]
[1739388972746,0.00782499,97032.0,97031.0,0.15625282]
[1739388973323,0.00782499,97032.0,97031.0,0.15525282]
[1739388973722,0.00782499,97032.0,97031.0,0.15625282]
[1739388974021,0.00782499,97032.0,97031.0,0.15525282]
[1739388974200,0.00782499,97032.0,97031.0,0.15825282]
[1739388974612,0.00782499,97032.0,97031.0,0.15925282]
[1739388974855,0.00782499,97032.0,97031.0,0.16125282]
[1739388975072,0.00782499,97032.0,97031.0,0.15625282]
[1739388976065,0.00782499,97032.0,97031.0,0.00166382]
[1739388976267,0.00782499,97032.0,97031.0,0.15625282]
[1739388976644,0.00782499,97032.0,97031.0,0.15525282]
[1739388976852,0.01748088,97032.0,97031.0,0.15825282]
[1739388977260,0.01748088,97032.0,97031.0,0.15525282]
[1739388977461,0.01748088,97032.0,97031.0,0.15625282]
[1739388977751,0.01748088,97032.0,97031.0,0.15725282]
[1739388977977,0.01748088,97032.0,97031.0,0.15625282]
[1739388978102,0.01748088,97032.0,97031.0,0.00166382]
[1739388978318,0.01748088,97032.0,97031.0,0.15625282]
[1739388979973,0.41831511,97032.0,97031.0,0.00166382]
[1739388980323,0.41831511,97032.0,96981.0,0.203213]
[1739388980324,0.0798,97031.0,97002.0,0.04967152]
[1739388980506,0.154634,97003.0,97002.0,0.04967152]
[1739388980712,0.154645,96996.0,96995.0,0.00066406]
[1739388980883,0.25714865,96996.0,96995.0,0.00066406]
[1739388981972,0.26680454,96996.0,96995.0,0.00066406]
[1739388983271,0.27452303,96996.0,96995.0,0.00066406]
[1739388984392,0.27652303,96996.0,96995.0,0.00066406]
[1739388988567,0.35942303,96996.0,96995.0,0.00066406]
[1739388989365,0.49798981,96996.0,96995.0,0.00066406]
[1739388989794,0.54558981,96996.0,96995.0,0.00066406]
[1739388990173,0.72858981,96996.0,96995.0,0.00066406]
[1739388990391,0.14384564,96964.0,96954.0,0.04223077]
[1739388990595,0.28769128,96964.0,96954.0,0.0426721]
[1739388990806,0.1547,96962.0,96954.0,0.0426721]
[1739388991014,0.154701,96961.0,96954.0,0.00044133]
[1739388992516,0.154704,96959.0,96954.0,0.00044133]
[1739388992931,0.28969128,96964.0,96954.0,0.00044133]
[1739388993153,0.155701,96961.0,96954.0,0.00544133]
[1739388993351,0.155701,96961.0,96954.0,0.00444133]
[1739388993592,0.154703,96960.0,96954.0,0.00044133]
[1739388993762,0.154703,96960.0,96954.0,0.00244133]
[1739388993980,0.001,96959.0,96954.0,0.00744133]
[1739388994177,0.001,96959.0,96954.0,0.00544133]
[1739388994498,0.154704,96959.0,96954.0,0.00144133]
[1739388994676,0.154704,96959.0,96954.0,0.00544133]
[1739388995273,0.001,96960.0,96954.0,0.00544133]
[1739388995501,0.206278,96957.0,96954.0,0.00544133]
[1739388995676,0.206278,96957.0,96954.0,0.00444133]
[1739388996037,0.15471,96955.0,96954.0,0.00644133]
[1739388996171,0.15471,96955.0,96954.0,0.00244133]
[1739388996517,0.15471,96955.0,96954.0,0.00644133]
[1739388996680,0.15471,96955.0,96954.0,0.00444133]
[1739388996880,0.15471,96955.0,96954.0,0.00044133]
[1739388997148,0.15471,96955.0,96954.0,0.00344133]
[1739388997321,0.15571,96955.0,96954.0,0.00744133]
[1739388997661,0.15571,96955.0,96954.0,0.01044133]
[1739388998375,0.001,96955.0,96954.0,0.01044133]
[1739388999888,0.15571,96955.0,96954.0,0.01044133]
[1739389002020,0.001,96955.0,96954.0,0.01044133]
[1739389002980,0.15571,96955.0,96954.0,0.01066519]
[1739389004934,0.001,96955.0,96954.0,0.01066519]
[1739389005135,0.01056338,96955.0,96954.0,0.00766519]
[1739389005338,0.00956338,96955.0,96954.0,0.00066519]
[1739389005961,0.01721434,96955.0,96954.0,0.00066519]
[1739389006950,0.00765096,96955.0,96954.0,0.00066519]
[1739389007420,0.00956338,96960.0,96954.0,0.00066519]
[1739389007623,0.00956338,96960.0,96954.0,0.15537719]
[1739389008412,0.00956338,96960.0,96954.0,0.00066519]
[1739389008653,0.00956338,96959.0,96954.0,0.00266519]
[1739389008805,0.00956338,96959.0,96956.0,0.154708]
[1739389009128,0.0001066,96961.0,96956.0,0.154708]
[1739389009129,0.14384564,96966.0,96956.0,0.154708]
[1739389009436,0.25719865,96965.0,96959.0,0.154704]
[1739389010037,0.10250365,96965.0,96957.0,0.154706]
[1739389010239,0.10250365,96965.0,96954.0,0.00066519]
[1739389010538,0.154699,96962.0,96956.0,0.001]
[1739389010766,0.30876365,96965.0,96956.0,0.155709]
[1739389010916,0.154696,96964.0,96956.0,0.001]
[1739389011267,0.10250365,96963.0,96958.0,0.154705]
[1739389011438,0.10250365,96963.0,96957.0,0.154707]
[1739389012017,0.35010364,96966.0,96964.0,0.154696]
[1739389012018,0.003,96965.0,96964.0,0.154696]
[1739389012439,0.154674,96979.0,96960.0,0.206268]
[1739389012657,0.14384564,96980.0,96967.0,0.154691]
[1739389012894,0.154679,96975.0,96967.0,0.154691]
[1739389013020,0.154677,96976.0,96967.0,0.154691]
[1739389013215,0.206233,96978.0,96967.0,0.154691]
[1739389013419,0.04067781,96968.0,96967.0,0.154691]
[1739389013839,0.04067781,96968.0,96967.0,0.156691]
[1739389014434,0.001,96968.0,96967.0,0.156691]
[1739389014876,0.154672,96979.0,96973.0,0.154681]
[1739389015203,0.25717765,96978.0,96971.0,0.154684]
[1739389015320,0.25717765,96978.0,96970.0,0.206247]
[1739389015519,0.25717765,96978.0,96971.0,0.154685]
[1739389016757,0.154678,96976.0,96969.0,0.154688]
[1739389016930,0.154685,96971.0,96954.0,0.00066519]
[1739389017135,0.14384564,96970.0,96954.0,0.00066519]
[1739389017714,0.154688,96969.0,96962.0,0.154699]
[1739389018254,0.29853264,96970.0,96963.0,0.154697]
[1739389018459,0.14384564,96970.0,96962.0,0.154699]
[1739389018636,0.206259,96966.0,96954.0,0.00066519]
[1739389018837,0.154703,96960.0,96954.0,0.00266519]
[1739389019139,0.154703,96960.0,96954.0,0.00066519]
[1739389019363,0.14384564,96964.0,96954.0,0.00066519]
[1739389019514,0.154706,96958.0,96954.0,0.00066519]
[1739389019864,0.154707,96957.0,96954.0,0.00066519]
[1739389019980,0.154707,96958.0,96954.0,0.00066519]
[1739389020182,0.154704,96959.0,96954.0,0.00066519]
[1739389020839,0.25719865,96965.0,96957.0,0.154706]
[1739389021055,0.25719865,96965.0,96958.0,0.154706]
[1739389021438,0.10250365,96965.0,96954.0,0.00066519]
[1739389021852,0.154702,96961.0,96954.0,0.15937719]
[1739389022861,0.30876365,96965.0,96955.0,0.15471]
[1739389023061,0.154699,96963.0,96955.0,0.15471]
[1739389023290,0.00770829,96960.0,96955.0,0.15471]
[1739389023861,0.00770829,96960.0,96954.0,0.15537719]
[1739389024080,0.00770829,96960.0,96954.0,0.00066519]
[1739389024259,0.15471,96955.0,96954.0,0.00066519]
[1739389024645,0.25721365,96955.0,96954.0,0.00066519]
[1739389025045,0.33481365,96955.0,96954.0,0.00066519]
[1739389025728,0.38161365,96955.0,96954.0,0.00766519]
[1739389026122,0.42899975,96955.0,96954.0,0.00766519]
[1739389026320,0.51315473,96955.0,96954.0,0.00766519]
[1739389026526,0.42899975,96955.0,96954.0,0.00766519]
[1739389027254,0.45987821,96955.0,96954.0,0.00066519]
[1739389027440,0.46687821,96955.0,96954.0,0.00166519]
[1739389027994,0.45987821,96955.0,96954.0,0.00466519]
[1739389028198,0.47487821,96955.0,96954.0,0.00566519]
[1739389028954,0.47187821,96955.0,96954.0,0.00166519]
[1739389030522,0.57056613,96955.0,96954.0,0.00166519]
[1739389031529,0.47187821,96955.0,96954.0,0.00166519]
[1739389033417,0.3376848,96955.0,96954.0,0.00166519]
[1739389033625,0.31659975,96955.0,96954.0,0.00166519]
[1739389034557,0.0593861,96955.0,96954.0,0.00166519]
[1739389034730,0.0593861,96955.0,96954.0,0.15637719]
[1739389035144,0.01970829,96955.0,96954.0,0.15637719]
[1739389036071,0.02070829,96955.0,96954.0,0.15637719]
[1739389036644,0.00870829,96955.0,96954.0,0.15537719]
[1739389037053,0.01070829,96955.0,96954.0,0.00066519]
[1739389038073,0.01070829,96955.0,96954.0,0.15537719]
[1739389038814,0.01070829,96955.0,96954.0,0.00066519]
[1739389038966,0.01070829,96955.0,96954.0,0.15537719]
[1739389039182,0.003,96955.0,96954.0,0.15537719]
[1739389039563,0.003,96955.0,96954.0,0.23657719]
[1739389039961,0.001,96955.0,96954.0,0.23657719]
[1739389040120,0.003,96955.0,96954.0,0.28507719]
[1739389040536,0.00770829,96960.0,96954.0,0.13036519]
[1739389040749,0.00770829,96960.0,96959.0,0.154704]
[1739389041246,0.00770829,96970.0,96969.0,0.154688]
[1739389041412,0.00770829,96970.0,96969.0,0.234088]
[1739389042183,0.00770829,96970.0,96969.0,0.432788]
[1739389042399,0.0001066,96971.0,96970.0,0.304687]
[1739389043941,0.0021066,96971.0,96970.0,0.49439065]
[1739389044180,0.0021066,96971.0,96970.0,0.50039065]
[1739389044329,0.0031066,96971.0,96970.0,0.50039065]
[1739389044520,0.0001066,96971.0,96970.0,0.49039065]
[1739389044735,0.0021066,96971.0,96970.0,0.50039065]
[1739389045202,0.0021066,96971.0,96970.0,0.49439065]
[1739389045383,0.0031066,96971.0,96970.0,0.50039065]
[1739389045997,0.0021066,96971.0,96970.0,0.49639065]
[1739389046531,0.0031066,96971.0,96970.0,0.50039065]
[1739389049881,0.0031066,96971.0,96970.0,0.54979065]
[1739389050956,0.0031066,96971.0,96970.0,0.57279065]
[1739389051317,0.0031066,96971.0,96970.0,0.90656565]
[1739389052065,0.00770829,96995.0,96970.0,0.74787865]
[1739389052281,0.00770829,96995.0,96994.0,0.284248]
[1739389052658,0.08267153,97009.0,96994.0,0.284248]
[1739389052659,0.08267153,97009.0,97008.0,0.154626]
[1739389052890,0.03967781,97018.0,96994.0,0.1296]
[1739389053042,0.10250365,97017.0,97014.0,0.154616]
[1739389053245,0.10250365,97017.0,97013.0,0.154618]
[1739389053441,0.10250365,97017.0,97013.0,0.00044133]
[1739389054007,0.10250365,97017.0,97013.0,0.15505833]
[1739389054769,0.10250365,97017.0,97014.0,0.154616]
[1739389054968,0.10250365,97017.0,97013.0,0.00044133]
[1739389055413,0.10250365,97017.0,97014.0,0.154616]
[1739389055719,0.10250365,97017.0,97013.0,0.00144133]
[1739389055919,0.10250365,97017.0,97013.0,0.00044133]
[1739389056359,0.10250365,97017.0,97013.0,0.15605833]
[1739389056570,0.03967781,97018.0,97013.0,0.00144133]
[1739389056711,0.03967781,97018.0,97014.0,0.206153]
[1739389056914,0.03967781,97018.0,97015.0,0.154614]
[1739389057512,0.03967781,97018.0,97013.0,0.15605933]
[1739389057893,0.10250365,97017.0,97014.0,0.001]
[1739389058096,0.154616,97014.0,97013.0,0.00144133]
[1739389058235,0.25711965,97014.0,97013.0,0.00144133]
[1739389058955,0.29679746,97014.0,97013.0,0.00044133]
[1739389059132,0.29679746,97014.0,97013.0,0.00144133]
[1739389059334,0.30445267,97014.0,97013.0,0.00144133]
[1739389059543,0.30445267,97014.0,97013.0,0.00044133]
[1739389060021,0.31145267,97014.0,97013.0,0.00144133]
[1739389060534,0.30445267,97014.0,97013.0,0.00044133]
[1739389060764,0.30945267,97014.0,97013.0,0.00044133]
[1739389061113,0.31145267,97014.0,97013.0,0.00044133]
[1739389061523,0.05233302,97014.0,97013.0,0.00044133]
[1739389061726,0.20694902,97014.0,97013.0,0.00044133]
[1739389061923,0.20194902,97014.0,97013.0,0.00044133]
[1739389062304,0.20794902,97014.0,97013.0,0.00044133]
[1739389062508,0.20694902,97014.0,97013.0,0.00044133]
[1739389062769,0.20194902,97014.0,97013.0,0.00044133]
[1739389062923,0.20694902,97014.0,97013.0,0.00044133]
[1739389063589,0.19429381,97014.0,97013.0,0.00044133]
[1739389063792,0.30079746,97014.0,97013.0,0.00044133]
[1739389064015,0.37979746,97014.0,97013.0,0.00044133]
[1739389064188,0.37990406,97014.0,97013.0,0.00044133]
[1739389064387,0.38757719,97014.0,97013.0,0.00044133]
[1739389064705,0.38857719,97014.0,97013.0,0.00044133]
[1739389065499,0.30957719,97014.0,97013.0,0.00044133]
[1739389072340,0.05245754,97014.0,97013.0,0.00044133]
[1739389072936,0.04845754,97014.0,97013.0,0.00044133]
[1739389073306,0.05045754,97014.0,97013.0,0.00044133]
[1739389073420,0.206135,97024.0,97013.0,0.00044133]
[1739389073624,0.10250365,97023.0,97014.0,0.154616]
[1739389074080,0.284617,97033.0,97013.0,0.00044133]
[1739389074081,0.03166534,97030.0,97021.0,0.154604]
[1739389074275,0.03166534,97030.0,97018.0,0.154609]
[1739389074276,0.206126,97028.0,97018.0,0.154609]
[1739389074473,0.30862965,97028.0,97013.0,0.36121533]
[1739389074688,0.154606,97021.0,97013.0,0.00044133]
[1739389075107,0.154606,97021.0,97015.0,0.154614]
[1739389075648,0.10250365,97028.0,97013.0,0.00044133]
[1739389075844,0.154604,97022.0,97015.0,0.206151]
[1739389076277,0.154604,97022.0,97015.0,0.154613]
[1739389076705,0.14584564,97030.0,97013.0,0.00044133]
[1739389076706,0.10250365,97021.0,97013.0,0.00044133]
[1739389076922,0.10261025,97021.0,97013.0,0.00044133]
[1739389077265,0.15461,97019.0,97013.0,0.00044133]
[1739389077393,0.10250365,97019.0,97013.0,0.00044133]
[1739389077603,0.25711265,97019.0,97013.0,0.00044133]
[1739389078485,0.25911265,97019.0,97013.0,0.00044133]
[1739389078717,0.25711265,97019.0,97013.0,0.00044133]
[1739389079349,0.10250365,97019.0,97013.0,0.00044133]
[1739389079509,0.10250365,97019.0,97017.0,0.15461]
[1739389079712,0.10250365,97019.0,97014.0,0.154616]
[1739389080116,0.25711165,97019.0,97013.0,0.00044133]
[1739389080325,0.10250365,97019.0,97013.0,0.15505933]
[1739389080521,0.10250365,97019.0,97013.0,0.00044133]
[1739389080982,0.206151,97017.0,97013.0,0.00044133]
[1739389081335,0.154613,97016.0,97013.0,0.00044133]
[1739389082491,0.154613,97016.0,97013.0,0.00144133]
[1739389082689,0.001,97016.0,97013.0,0.15605933]
[1739389082889,0.001,97016.0,97015.0,0.154615]
[1739389084505,0.001,97016.0,97015.0,0.155615]
[1739389084708,0.10250365,97019.0,97015.0,0.001]
[1739389085046,0.25711265,97019.0,97015.0,0.001]
[1739389085244,0.10250365,97019.0,97013.0,0.15505833]
[1739389085469,0.003,97016.0,97013.0,0.15505833]
[1739389085774,0.003,97016.0,97013.0,0.00044133]
[1739389085975,0.10250365,97019.0,97015.0,0.156615]
[1739389086151,0.00770648,97018.0,97017.0,0.154612]
[1739389087114,0.00770648,97018.0,97017.0,0.286412]
[1739389087849,0.00770648,97018.0,97017.0,0.436412]
[1739389088585,0.00770648,97018.0,97017.0,0.438412]
[1739389088783,0.00770648,97018.0,97017.0,0.436412]
[1739389089087,0.00870648,97018.0,97017.0,0.451412]
[1739389089289,0.001,97018.0,97017.0,0.457412]
[1739389095576,0.001,97018.0,97017.0,0.307412]
[1739389095786,0.001,97018.0,97017.0,0.175612]
[1739389099531,0.001,97018.0,97017.0,0.447512]
[1739389100658,0.001,97018.0,97017.0,0.45823807]
[1739389101454,0.001,97018.0,97017.0,0.45846172]
[1739389102165,0.001,97018.0,97017.0,0.58396537]
[1739389103393,0.001,97018.0,97017.0,0.57796537]
[1739389103593,0.0001066,97021.0,97020.0,0.304607]
[1739389103836,0.0001066,97021.0,97020.0,0.55261065]
[1739389104916,0.0001066,97021.0,97020.0,0.55961065]
[1739389105115,0.0001066,97021.0,97020.0,0.57461065]
[1739389105544,6e-07,97021.0,97020.0,0.58461065]
[1739389105745,6e-07,97021.0,97020.0,0.57461065]
[1739389106142,0.0001065,97032.0,97031.0,0.434689]
[1739389106319,0.0001065,97032.0,97031.0,0.56019265]
[1739389106741,0.00770648,97055.0,97031.0,0.56019265]
[1739389106742,0.00770648,97055.0,97037.0,0.45768]
[1739389106939,0.0001066,97059.0,97037.0,0.56018365]
[1739389107365,4.2e-07,97038.0,97037.0,0.56018365]
[1739389108149,4.2e-07,97038.0,97037.0,0.57518365]
[1739389108344,4.2e-07,97038.0,97037.0,0.58218365]
[1739389110106,0.0001066,97059.0,97047.0,0.304564]
[1739389110330,0.0001066,97059.0,97047.0,0.48816765]
[1739389111370,0.0001066,97059.0,97047.0,0.50360898]
[1739389112871,0.0001066,97059.0,97047.0,0.51060898]
[1739389113422,0.0001066,97059.0,97047.0,0.48860898]
[1739389113577,0.0001066,97059.0,97047.0,0.51060898]
[1739389113777,0.0001066,97059.0,97047.0,0.50360898]
[1739389113978,0.0001066,97059.0,97047.0,0.49939177]
[1739389114203,0.0001066,97059.0,97047.0,0.50639177]
[1739389114403,5e-07,97048.0,97047.0,0.71360677]
[1739389114560,1e-07,97058.0,97057.0,0.154548]
[1739389114761,1e-07,97058.0,97057.0,0.55468165]
[1739389115024,1e-07,97058.0,97057.0,0.55365165]
[1739389115231,0.00770648,97081.0,97067.0,0.304532]
[1739389115232,5e-07,97068.0,97067.0,0.304532]
[1739389115436,5e-07,97068.0,97067.0,0.55363565]
[1739389115565,5e-07,97068.0,97067.0,0.58749345]
[1739389116827,5e-07,97068.0,97067.0,0.59449345]
[1739389117025,5e-07,97068.0,97067.0,0.56063565]